fUST/lending_fUST_20250713
["ID","MTS","AMOUNT","RATE_DAILY","PERIOD"]
[371539296,1752341462778,-460.0,0.00018904,2]
[371539297,1752341462787,-460.0,0.00018904,2]
[371539298,1752341462796,-460.0,0.00018904,2]
[371539299,1752341462805,-544.52,0.00018904,2]
[371539300,1752341462814,-460.0,0.00018904,2]
[371539301,1752341462824,-460.0,0.00018904,2]
[371539302,1752341462834,-692.2,0.00018904,2]
[371539303,1752341462843,-778.38,0.00018904,2]
[371539304,1752341462852,-460.0,0.00018904,2]
[371539305,1752341462861,-460.0,0.00018904,2]
[371539306,1752341462871,-661.3,0.00018904,2]
[371539307,1752341462881,-460.0,0.00018904,2]
[371539308,1752341462890,-460.0,0.00018904,2]
[371539309,1752341462899,-460.0,0.00018904,2]
[371539310,1752341462909,-460.0,0.00018904,2]
[371539311,1752341462918,-5899.36,0.00018904,2]
[371539312,1752341462927,-460.0,0.00018904,2]
[371539313,1752341462936,-460.0,0.00018904,2]
[371539314,1752341462945,-1031.76,0.00018904,2]
[371539315,1752341462955,-460.0,0.00018904,2]
[371539316,1752341462964,-460.0,0.00018904,2]
[371539317,1752341462973,-460.0,0.00018904,2]
[371539318,1752341462982,-460.0,0.00018904,2]
[371539319,1752341462992,-460.0,0.00018904,2]
[371539320,1752341463001,-460.0,0.00018904,2]
[371539321,1752341463010,-191.54,0.00018904,2]
[371539322,1752341463020,-855.52,0.00018904,2]
[371539323,1752341463029,-460.0,0.00018904,2]
[371539324,1752341463039,-460.0,0.00018904,2]
[371539325,1752341463048,-460.0,0.00018904,2]
[371539326,1752341463058,-1595.36,0.00018904,2]
[371539327,1752341463068,-460.0,0.00018904,2]
[371539328,1752341463077,-1455.86,0.00018904,2]
[371539329,1752341463087,-460.0,0.00018904,2]
[371539330,1752341463097,-460.0,0.00018904,2]
[371539331,1752341463107,-460.0,0.00018904,2]
[371539332,1752341463116,-460.0,0.00018904,2]
[371539333,1752341463126,-3548.65,0.00018904,2]
[371539334,1752341463138,-460.0,0.00018904,2]
[371539335,1752341463148,-1600.37,0.00018904,2]
[371539336,1752341463158,-460.0,0.00018904,2]
[371539337,1752341463168,-460.0,0.00018904,2]
[371539338,1752341463178,-460.0,0.00018904,2]
[371539339,1752341463189,-1889.11,0.00018904,2]
[371539340,1752341463199,-460.0,0.00018904,2]
[371539341,1752341463209,-460.0,0.00018904,2]
[371539342,1752341463219,-576.07,0.00018904,2]
[371539343,1752341463232,-1377.53,0.00018904,2]
[371539344,1752341463251,-528.16,0.00018904,2]
[371539345,1752341463269,-460.0,0.00018904,2]
[371539346,1752341463287,-460.0,0.00018904,2]
[371539347,1752341463305,-574.66,0.00018904,2]
[371539348,1752341463322,-460.0,0.00018904,2]
[371539349,1752341463342,-460.0,0.00018904,2]
[371539350,1752341463358,-460.0,0.00018904,2]
[371539351,1752341463375,-572.58,0.00018904,2]
[371539352,1752341463394,-460.0,0.00018904,2]
[371539353,1752341463408,-520.2,0.00018904,2]
[371539354,1752341463424,-724.22,0.00018904,2]
[371539355,1752341463442,-460.0,0.00018904,2]
[371539356,1752341463459,-460.0,0.00018904,2]
[371539357,1752341463476,-477.98,0.00018904,2]
[371539358,1752341463488,-460.0,0.00018904,2]
[371539359,1752341463502,-460.0,0.00018904,2]
[371539360,1752341463520,-1280.94,0.00018904,2]
[371539361,1752341463535,-460.0,0.00018904,2]
[371539362,1752341463551,-460.0,0.00018904,2]
[371539363,1752341463564,-460.0,0.00018904,2]
[371539364,1752341463579,-1975.66,0.00018904,2]
[371539365,1752341463594,-764.69,0.00018904,2]
[371539366,1752341463608,-822.69,0.00018904,2]
[371539367,1752341463622,-2904.99,0.00018904,2]
[371539368,1752341463638,-460.0,0.00018904,2]
[371539369,1752341463652,-460.0,0.00018904,2]
[371539370,1752341463667,-717.3,0.00018904,2]
[371539371,1752341463681,-641.87,0.00018904,2]
[371539372,1752341463695,-460.0,0.00018904,2]
[371539373,1752341463709,-472.14,0.00018904,2]
[371539374,1752341463723,-461.89,0.00018904,2]
[371539375,1752341463737,-555.91,0.00018904,2]
[371539376,1752341463751,-460.0,0.00018904,2]
[371539377,1752341463765,-460.0,0.00018904,2]
[371539378,1752341463779,-2667.26,0.00018904,2]
[371539379,1752341463793,-460.0,0.00018904,2]
[371539380,1752341463807,-460.0,0.00018904,2]
[371539381,1752341463821,-460.0,0.00018904,2]
[371539382,1752341463835,-491.78,0.00018904,2]
[371539383,1752341463848,-460.0,0.00018904,2]
[371539384,1752341463862,-563.79720118,0.00018904,2]
[371539385,1752341463876,-645.69,0.00018904,2]
[371539386,1752341463891,-460.0,0.00018904,2]
[371539387,1752341463905,-460.0,0.00018904,2]
[371539388,1752341463919,-460.0,0.00018904,2]
[371539389,1752341463932,-460.0,0.00018904,2]
[371539390,1752341463945,-505.28,0.00018904,2]
[371539391,1752341463959,-460.0,0.00018904,2]
[371539392,1752341463972,-460.0,0.00018904,2]
[371539393,1752341463985,-460.0,0.00018904,2]
[371539394,1752341463999,-460.0,0.00018904,2]
[371539395,1752341464012,-460.0,0.00018904,2]
[371539396,1752341464026,-460.0,0.00018904,2]
[371539397,1752341464040,-800.93,0.00018904,2]
[371539398,1752341464054,-460.0,0.00018904,2]
[371539399,1752341464069,-489.97,0.00018904,2]
[371539400,1752341464083,-460.0,0.00018904,2]
[371539401,1752341464099,-460.0,0.00018904,2]
[371539402,1752341464114,-460.0,0.00018904,2]
[371539403,1752341464131,-2783.19,0.00018904,2]
[371539404,1752341464146,-460.0,0.00018904,2]
[371539405,1752341464160,-466.62,0.00018904,2]
[371539406,1752341464174,-460.0,0.00018904,2]
[371539407,1752341464189,-460.0,0.00018904,2]
[371539408,1752341464203,-1495.63,0.00018904,2]
[371539409,1752341464217,-460.0,0.00018904,2]
[371539410,1752341464232,-488.38,0.00018904,2]
[371539411,1752341464246,-460.0,0.00018904,2]
[371539412,1752341464260,-4194.76,0.00018904,2]
[371539413,1752341464273,-460.0,0.00018904,2]
[371539414,1752341464287,-460.0,0.00018904,2]
[371539415,1752341464300,-460.02,0.00018904,2]
[371539416,1752341464314,-460.0,0.00018904,2]
[371539417,1752341464328,-1061.05,0.00018904,2]
[371539418,1752341464341,-460.0,0.00018904,2]
[371539419,1752341464350,-2000.0,0.00018944,2]
[371539420,1752341464360,-2000.0,0.00018944,2]
[371539421,1752341464370,-2000.0,0.00018991,2]
[371539422,1752341464381,-2000.0,0.00018991,2]
[371539423,1752341464391,-2000.0,0.00018991,2]
[371539424,1752341464401,-2030.66698955,0.00019078,2]
[371539425,1752341464582,-1961.7256578,0.00019107,2]
[371539426,1752341464608,-500.0,0.00019173,2]
[371539427,1752341464618,-501.36560506,0.00019173,2]
[371539428,1752341464629,-502.93992605,0.00019173,2]
[371539429,1752341464640,-502.54304723,0.00019173,2]
[371539430,1752341464649,-500.0,0.00019173,2]
[371539431,1752341464659,-158.0,0.00019173,2]
[371539432,1752341464668,-500.97108494,0.00019173,2]
[371539433,1752341464678,-258.0,0.00019173,2]
[371539434,1752341464687,-498.4323488,0.00019173,2]
[371539435,1752341464698,-500.0,0.00019173,2]
[371539436,1752341464708,-500.0,0.00019173,2]
[371539437,1752341464718,-500.0,0.00019173,2]
[371539438,1752341464727,-500.0,0.00019173,2]
[371539439,1752341464736,-500.0,0.00019173,2]
[371539440,1752341464746,-500.0,0.00019173,2]
[371539441,1752341464755,-500.0,0.00019173,2]
[371539442,1752341464765,-500.0,0.00019173,2]
[371539443,1752341464775,-500.0,0.00019173,2]
[371539444,1752341464784,-157.91354213,0.00019173,2]
[371539445,1752341464794,-500.0,0.00019173,2]
[371539446,1752341464804,-629.83270293,0.00019178,2]
[371539447,1752341464814,-460.0,0.00019178,2]
[371539448,1752341464824,-460.0,0.00019178,2]
[371539449,1752341464834,-460.0,0.00019178,2]
[371539450,1752341464843,-460.0,0.00019178,2]
[371539451,1752341464853,-460.0,0.00019178,2]
[371539452,1752341464863,-460.0,0.00019178,2]
[371539453,1752341464873,-520.55,0.00019178,2]
[371539454,1752341464883,-460.0,0.00019178,2]
[371539455,1752341464892,-460.0,0.00019178,2]
[371539456,1752341464902,-667.2,0.00019178,2]
[371539457,1752341464912,-696.16,0.00019178,2]
[371539458,1752341464922,-460.0,0.00019178,2]
[371539459,1752341464931,-460.0,0.00019178,2]
[371539460,1752341464941,-460.0,0.00019178,2]
[371539461,1752341464950,-706.94,0.00019178,2]
[371539462,1752341464960,-151.0,0.00019178,2]
[371539463,1752341464971,-151.0,0.00019178,2]
[371539464,1752341464980,-460.0,0.00019178,2]
[371539465,1752341464990,-460.0,0.00019178,2]
[371539466,1752341464999,-460.0,0.00019178,2]
[371539467,1752341465009,-460.0,0.00019178,2]
[371539468,1752341465019,-460.0,0.00019178,2]
[371539469,1752341465029,-460.0,0.00019178,2]
[371539470,1752341465039,-460.0,0.00019178,2]
[371539471,1752341465050,-692.2,0.00019178,2]
[371539472,1752341465060,-778.38,0.00019178,2]
[371539473,1752341465070,-460.0,0.00019178,2]
[371539474,1752341465080,-460.0,0.00019178,2]
[371539475,1752341465090,-661.3,0.00019178,2]
[371539476,1752341465100,-460.0,0.00019178,2]
[371539477,1752341465109,-460.0,0.00019178,2]
[371539478,1752341465119,-460.0,0.00019178,2]
[371539479,1752341465128,-460.0,0.00019178,2]
[371539480,1752341465138,-5899.36,0.00019178,2]
[371539481,1752341465148,-460.0,0.00019178,2]
[371539482,1752341465158,-460.0,0.00019178,2]
[371539483,1752341465168,-1031.76,0.00019178,2]
[371539484,1752341465178,-460.0,0.00019178,2]
[371539485,1752341465189,-460.0,0.00019178,2]
[371539486,1752341465198,-257.65104003,0.00019178,2]
[371539487,1752341465209,-460.0,0.00019178,2]
[371539488,1752341465219,-460.0,0.00019178,2]
[371539489,1752341465230,-460.0,0.00019178,2]
[371539490,1752341465239,-855.52,0.00019178,2]
[371539491,1752341465249,-460.0,0.00019178,2]
[371539492,1752341465259,-460.0,0.00019178,2]
[371539493,1752341465269,-460.0,0.00019178,2]
[371539494,1752341465279,-1595.36,0.00019178,2]
[371539495,1752341465289,-460.0,0.00019178,2]
[371539496,1752341465299,-1455.86,0.00019178,2]
[371539497,1752341465308,-460.0,0.00019178,2]
[371539498,1752341465317,-460.0,0.00019178,2]
[371539499,1752341465328,-460.0,0.00019178,2]
[371539500,1752341465337,-460.0,0.00019178,2]
[371539501,1752341465347,-3548.65,0.00019178,2]
[371539502,1752341465358,-460.0,0.00019178,2]
[371539503,1752341465367,-1600.37,0.00019178,2]
[371539504,1752341465378,-460.0,0.00019178,2]
[371539505,1752341465387,-460.0,0.00019178,2]
[371539506,1752341465397,-460.0,0.00019178,2]
[371539507,1752341465406,-1889.11,0.00019178,2]
[371539508,1752341465416,-460.0,0.00019178,2]
[371539509,1752341465425,-460.0,0.00019178,2]
[371539510,1752341465434,-576.07,0.00019178,2]
[371539511,1752341465442,-1377.53,0.00019178,2]
[371539512,1752341465451,-528.16,0.00019178,2]
[371539513,1752341465460,-460.0,0.00019178,2]
[371539514,1752341465469,-460.0,0.00019178,2]
[371539515,1752341465478,-574.66,0.00019178,2]
[371539516,1752341465488,-460.0,0.00019178,2]
[371539517,1752341465498,-460.0,0.00019178,2]
[371539518,1752341465507,-460.0,0.00019178,2]
[371539519,1752341465516,-572.58,0.00019178,2]
[371539520,1752341465529,-520.2,0.00019178,2]
[371539521,1752341465538,-724.22,0.00019178,2]
[371539522,1752341465547,-460.0,0.00019178,2]
[371539523,1752341465556,-477.98,0.00019178,2]
[371539524,1752341465567,-460.0,0.00019178,2]
[371539525,1752341465576,-460.0,0.00019178,2]
[371539526,1752341465585,-1280.94,0.00019178,2]
[371539527,1752341465594,-460.0,0.00019178,2]
[371539528,1752341465603,-460.0,0.00019178,2]
[371539529,1752341465613,-460.0,0.00019178,2]
[371539530,1752341465622,-1975.66,0.00019178,2]
[371539531,1752341465632,-764.69,0.00019178,2]
[371539532,1752341465641,-822.69,0.00019178,2]
[371539533,1752341465651,-2904.99,0.00019178,2]
[371539534,1752341465660,-460.0,0.00019178,2]
[371539535,1752341465668,-460.0,0.00019178,2]
[371539536,1752341465678,-717.3,0.00019178,2]
[371539537,1752341465688,-641.87,0.00019178,2]
[371539538,1752341465697,-472.14,0.00019178,2]
[371539539,1752341465706,-461.89,0.00019178,2]
[371539540,1752341465715,-555.91,0.00019178,2]
[371539541,1752341465724,-460.0,0.00019178,2]
[371539542,1752341465733,-460.0,0.00019178,2]
[371539543,1752341465743,-2667.26,0.00019178,2]
[371539544,1752341465752,-460.0,0.00019178,2]
[371539545,1752341465761,-460.0,0.00019178,2]
[371539546,1752341465770,-460.0,0.00019178,2]
[371539547,1752341465780,-491.78,0.00019178,2]
[371539548,1752341465789,-460.0,0.00019178,2]
[371539549,1752341465798,-645.69,0.00019178,2]
[371539550,1752341465807,-460.0,0.00019178,2]
[371539551,1752341465816,-460.0,0.00019178,2]
[371539552,1752341465825,-460.0,0.00019178,2]
[371539553,1752341465834,-460.0,0.00019178,2]
[371539554,1752341465843,-505.28,0.00019178,2]
[371539555,1752341465853,-460.0,0.00019178,2]
[371539556,1752341465862,-460.0,0.00019178,2]
[371539557,1752341465871,-460.0,0.00019178,2]
[371539558,1752341465880,-598.24854923,0.00019178,2]
[371539559,1752341465890,-460.0,0.00019178,2]
[371539560,1752341465899,-460.0,0.00019178,2]
[371539561,1752341465908,-800.93,0.00019178,2]
[371539562,1752341465918,-460.0,0.00019178,2]
[371539563,1752341465927,-489.97,0.00019178,2]
[371539564,1752341465936,-460.0,0.00019178,2]
[371539565,1752341465945,-460.0,0.00019178,2]
[371539566,1752341465954,-460.0,0.00019178,2]
[371539567,1752341465963,-2783.19,0.00019178,2]
[371539568,1752341465972,-460.0,0.00019178,2]
[371539569,1752341465982,-466.62,0.00019178,2]
[371539570,1752341465990,-460.0,0.00019178,2]
[371539571,1752341466000,-460.0,0.00019178,2]
[371539572,1752341466009,-1495.63,0.00019178,2]
[371539573,1752341466019,-460.0,0.00019178,2]
[371539574,1752341466028,-488.38,0.00019178,2]
[371539575,1752341466038,-460.0,0.00019178,2]
[371539576,1752341466047,-4194.76,0.00019178,2]
[371539577,1752341466057,-460.0,0.00019178,2]
[371539578,1752341466066,-460.0,0.00019178,2]
[371539579,1752341466076,-460.02,0.00019178,2]
[371539580,1752341466085,-460.0,0.00019178,2]
[371539581,1752341466095,-1061.05,0.00019178,2]
[371539582,1752341466105,-460.0,0.00019178,2]
[371539583,1752341466115,-5000.0,0.00019178,2]
[371539584,1752341466125,-5000.0,0.00019178,2]
[371539585,1752341466136,-5000.0,0.00019178,2]
[371539586,1752341466145,-5000.0,0.00019178,2]
[371539587,1752341466155,-5000.0,0.00019178,2]
[371539588,1752341466165,-5000.0,0.00019178,2]
[371539589,1752341466174,-2010.35104184,0.00019178,2]
[371539590,1752341466183,-666.0,0.00019178,2]
[371539591,1752341466192,-48154.9889144,0.00019178,2]
[371539592,1752341466202,-492.41,0.000192,2]
[371539593,1752341466212,-3745.95,0.000192,2]
[371539594,1752341466221,-29944.87,0.000192,2]
[371539595,1752341466231,-151.0,0.000192,2]
[371539596,1752341466240,-151.85317382,0.00019205,2]
[371539597,1752341466250,-151.0,0.00019205,2]
[371539598,1752341466259,-151.0,0.00019233,2]
[371539599,1752341466270,-199.04772792,0.0001926,2]
[371539600,1752341466279,-151.0,0.00019329,2]
[371539601,1752341466288,-151.0,0.00019329,2]
[371539602,1752341466298,-151.0,0.00019329,2]
[371539603,1752341466308,-151.0,0.00019329,2]
[371539604,1752341466318,-151.0,0.00019329,2]
[371539605,1752341466328,-151.0,0.00019329,2]
[371539606,1752341466337,-151.0,0.00019329,2]
[371539607,1752341466347,-151.0,0.00019329,2]
[371539608,1752341466357,-151.0,0.00019329,2]
[371539609,1752341466366,-151.0,0.00019329,2]
[371539610,1752341466376,-100000.0,0.00019329,2]
[371539611,1752341466386,-1961.7256578,0.00019348,2]
[371539612,1752341466396,-460.0,0.00019452,2]
[371539613,1752341466406,-460.0,0.00019452,2]
[371539614,1752341466415,-153.37,0.00019452,2]
[371539615,1752341466425,-460.0,0.00019452,2]
[371539616,1752341466435,-460.0,0.00019452,2]
[371539617,1752341466445,-460.0,0.00019452,2]
[371539618,1752341466455,-520.55,0.00019452,2]
[371539619,1752341466464,-460.0,0.00019452,2]
[371539620,1752341466474,-460.0,0.00019452,2]
[371539621,1752341466483,-667.2,0.00019452,2]
[371539622,1752341466493,-696.16,0.00019452,2]
[371539623,1752341466502,-460.0,0.00019452,2]
[371539624,1752341466514,-179.32731101,0.00019452,2]
[371539625,1752341466526,-460.0,0.00019452,2]
[371539626,1752341466537,-706.94,0.00019452,2]
[371539627,1752341466547,-460.0,0.00019452,2]
[371539628,1752341466557,-460.0,0.00019452,2]
[371539629,1752341466567,-460.0,0.00019452,2]
[371539630,1752341466578,-460.0,0.00019452,2]
[371539631,1752341466588,-460.0,0.00019452,2]
[371539632,1752341466599,-460.0,0.00019452,2]
[371539633,1752341466610,-460.0,0.00019452,2]
[371539634,1752341466620,-692.2,0.00019452,2]
[371539635,1752341466630,-778.38,0.00019452,2]
[371539636,1752341466640,-460.0,0.00019452,2]
[371539637,1752341466649,-460.0,0.00019452,2]
[371539638,1752341466659,-661.3,0.00019452,2]
[371539639,1752341466670,-460.0,0.00019452,2]
[371539640,1752341466679,-460.0,0.00019452,2]
[371539641,1752341466690,-460.0,0.00019452,2]
[371539642,1752341466700,-460.0,0.00019452,2]
[371539643,1752341466710,-5899.36,0.00019452,2]
[371539644,1752341466720,-460.0,0.00019452,2]
[371539645,1752341466730,-460.0,0.00019452,2]
[371539646,1752341466740,-1031.76,0.00019452,2]
[371539647,1752341466749,-460.0,0.00019452,2]
[371539648,1752341466759,-460.0,0.00019452,2]
[371539649,1752341466769,-460.0,0.00019452,2]
[371539650,1752341466778,-460.0,0.00019452,2]
[371539651,1752341466788,-855.52,0.00019452,2]
[371539652,1752341466798,-460.0,0.00019452,2]
[371539653,1752341466808,-460.0,0.00019452,2]
[371539654,1752341466818,-1595.36,0.00019452,2]
[371539655,1752341466828,-1455.86,0.00019452,2]
[371539656,1752341466837,-460.0,0.00019452,2]
[371539657,1752341466847,-383.94856345,0.00019452,2]
[371539658,1752341466856,-460.0,0.00019452,2]
[371539659,1752341466865,-460.0,0.00019452,2]
[371539660,1752341466878,-3548.65,0.00019452,2]
[371539661,1752341466889,-1600.37,0.00019452,2]
[371539662,1752341466898,-460.0,0.00019452,2]
[371539663,1752341466907,-460.0,0.00019452,2]
[371539664,1752341466918,-1889.11,0.00019452,2]
[371539665,1752341466928,-460.0,0.00019452,2]
[371539666,1752341466937,-460.0,0.00019452,2]
[371539667,1752341466947,-576.07,0.00019452,2]
[371539668,1752341466956,-1377.53,0.00019452,2]
[371539669,1752341466966,-528.16,0.00019452,2]
[371539670,1752341466976,-460.0,0.00019452,2]
[371539671,1752341466987,-460.0,0.00019452,2]
[371539672,1752341466996,-574.66,0.00019452,2]
[371539673,1752341467006,-460.0,0.00019452,2]
[371539674,1752341467016,-460.0,0.00019452,2]
[371539675,1752341467027,-460.0,0.00019452,2]
[371539676,1752341467036,-572.58,0.00019452,2]
[371539677,1752341467045,-520.2,0.00019452,2]
[371539678,1752341467054,-724.22,0.00019452,2]
[371539679,1752341467064,-460.0,0.00019452,2]
[371539680,1752341467073,-477.98,0.00019452,2]
[371539681,1752341467082,-460.0,0.00019452,2]
[371539682,1752341467091,-1280.94,0.00019452,2]
[371539683,1752341467101,-460.0,0.00019452,2]
[371539684,1752341467111,-460.0,0.00019452,2]
[371539685,1752341467120,-1975.66,0.00019452,2]
[371539686,1752341467130,-764.69,0.00019452,2]
[371539687,1752341467140,-822.69,0.00019452,2]
[371539688,1752341467150,-2904.99,0.00019452,2]
[371539689,1752341467159,-460.0,0.00019452,2]
[371539690,1752341467169,-460.0,0.00019452,2]
[371539691,1752341467179,-717.3,0.00019452,2]
[371539692,1752341467188,-641.87,0.00019452,2]
[371539693,1752341467313,-472.14,0.00019452,2]
[371539694,1752341467323,-461.89,0.00019452,2]
[371539695,1752341467332,-555.91,0.00019452,2]
[371539696,1752341467342,-460.0,0.00019452,2]
[371539697,1752341467352,-460.0,0.00019452,2]
[371539698,1752341467361,-2667.26,0.00019452,2]
[371539699,1752341467371,-460.0,0.00019452,2]
[371539700,1752341467381,-460.0,0.00019452,2]
[371539701,1752341467391,-460.0,0.00019452,2]
[371539702,1752341467400,-491.78,0.00019452,2]
[371539703,1752341467409,-460.0,0.00019452,2]
[371539704,1752341467418,-645.69,0.00019452,2]
[371539705,1752341467428,-460.0,0.00019452,2]
[371539706,1752341467437,-460.0,0.00019452,2]
[371539707,1752341467447,-505.28,0.00019452,2]
[371539708,1752341467457,-460.0,0.00019452,2]
[371539709,1752341467466,-550.20853849,0.00019452,2]
[371539710,1752341467475,-460.0,0.00019452,2]
[371539711,1752341467485,-460.0,0.00019452,2]
[371539712,1752341467494,-460.0,0.00019452,2]
[371539713,1752341467503,-800.93,0.00019452,2]
[371539714,1752341467512,-460.0,0.00019452,2]
[371539715,1752341467522,-489.97,0.00019452,2]
[371539716,1752341467534,-460.0,0.00019452,2]
[371539717,1752341467544,-460.0,0.00019452,2]
[371539718,1752341467553,-460.0,0.00019452,2]
[371539719,1752341467563,-2783.19,0.00019452,2]
[371539720,1752341467573,-460.0,0.00019452,2]
[371539721,1752341467582,-466.62,0.00019452,2]
[371539722,1752341467591,-460.0,0.00019452,2]
[371539723,1752341467602,-1495.63,0.00019452,2]
[371539724,1752341467611,-460.0,0.00019452,2]
[371539725,1752341467620,-488.38,0.00019452,2]
[371539726,1752341467631,-460.0,0.00019452,2]
[371539727,1752341467641,-4194.76,0.00019452,2]
[371539728,1752341467651,-587.22400294,0.00019452,2]
[371539729,1752341467660,-460.0,0.00019452,2]
[371539730,1752341467671,-460.02,0.00019452,2]
[371539731,1752341467681,-460.0,0.00019452,2]
[371539732,1752341467692,-1061.05,0.00019452,2]
[371539733,1752341467702,-1000.0,0.00019492,2]
[371539734,1752341467711,-1500.0,0.00019492,2]
[371539735,1752341467721,-2500.0,0.00019539,2]
[371539736,1752341467731,-2500.0,0.00019539,2]
[371539737,1752341467741,-2500.0,0.00019539,2]
[371539738,1752341467751,-1961.7256578,0.0001959,2]
[371539739,1752341467760,-5000.0,0.00019647,2]
[371539740,1752341467770,-2030.66698952,0.00019701,2]
[371539741,1752341467779,-1000.0,0.00019721,2]
[371539742,1752341467788,-1000.0,0.00019721,2]
[371539743,1752341467798,-1001.22281008,0.00019721,2]
[371539744,1752341467808,-1000.0,0.00019721,2]
[371539745,1752341467817,-500.0,0.00019721,2]
[371539746,1752341467827,-500.0,0.00019721,2]
[371539747,1752341467836,-501.9477108,0.00019721,2]
[371539748,1752341467846,-460.0,0.00019726,2]
[371539749,1752341467855,-460.0,0.00019726,2]
[371539750,1752341467864,-460.0,0.00019726,2]
[371539751,1752341467874,-460.0,0.00019726,2]
[371539752,1752341467885,-460.0,0.00019726,2]
[371539753,1752341467894,-520.55,0.00019726,2]
[371539754,1752341467904,-460.0,0.00019726,2]
[371539755,1752341467913,-667.2,0.00019726,2]
[371539756,1752341467922,-696.16,0.00019726,2]
[371539757,1752341467931,-460.0,0.00019726,2]
[371539758,1752341467941,-706.94,0.00019726,2]
[371539759,1752341467950,-460.0,0.00019726,2]
[371539760,1752341467961,-460.0,0.00019726,2]
[371539761,1752341467970,-460.0,0.00019726,2]
[371539762,1752341467979,-460.0,0.00019726,2]
[371539763,1752341467988,-460.0,0.00019726,2]
[371539764,1752341467998,-460.0,0.00019726,2]
[371539765,1752341468008,-692.2,0.00019726,2]
[371539766,1752341468017,-778.38,0.00019726,2]
[371539767,1752341468027,-460.0,0.00019726,2]
[371539768,1752341468036,-460.0,0.00019726,2]
[371539769,1752341468046,-661.3,0.00019726,2]
[371539770,1752341468056,-460.0,0.00019726,2]
[371539771,1752341468065,-451.58564027,0.00019726,2]
[371539772,1752341468075,-515.47192529,0.00019726,2]
[371539773,1752341468084,-460.0,0.00019726,2]
[371539774,1752341468093,-5899.36,0.00019726,2]
[371539775,1752341468102,-460.0,0.00019726,2]
[371539776,1752341468112,-460.0,0.00019726,2]
[371539777,1752341468121,-1031.76,0.00019726,2]
[371539778,1752341468132,-460.0,0.00019726,2]
[371539779,1752341468142,-460.0,0.00019726,2]
[371539780,1752341468151,-460.0,0.00019726,2]
[371539781,1752341468161,-460.0,0.00019726,2]
[371539782,1752341468170,-855.52,0.00019726,2]
[371539783,1752341468179,-460.0,0.00019726,2]
[371539784,1752341468189,-1595.36,0.00019726,2]
[371539785,1752341468199,-1455.86,0.00019726,2]
[371539786,1752341468208,-460.0,0.00019726,2]
[371539787,1752341468217,-460.0,0.00019726,2]
[371539788,1752341468227,-460.0,0.00019726,2]
[371539789,1752341468236,-3548.65,0.00019726,2]
[371539790,1752341468246,-1600.37,0.00019726,2]
[371539791,1752341468256,-460.0,0.00019726,2]
[371539792,1752341468266,-1889.11,0.00019726,2]
[371539793,1752341468275,-460.0,0.00019726,2]
[371539794,1752341468286,-460.0,0.00019726,2]
[371539795,1752341468302,-576.07,0.00019726,2]